bitfinex-derivatives/quotes_SOLF0:USTF0_20220101
["timestamp","ask_amount","ask_price","bid_price","bid_amount"]
[1641059170671,41.6408,175.28,175.21,27.66479]
[1641059170871,39.82291698,175.29,175.21,27.66479]
[1641059171471,39.82291698,175.29,175.21,30.66479]
[1641059171674,39.82291698,175.29,175.21,27.66479]
[1641059171871,39.82291698,175.29,175.21,30.66479]
[1641059172071,4.0518168,175.23,175.22,1.27697894]
[1641059172272,4.0518168,175.23,175.22,4.27697894]
[1641059172474,4.0518168,175.23,175.22,1.27697894]
[1641059172673,12.15812698,175.27,175.22,1.27697894]
[1641059173173,27.66479,175.29,175.22,18.26609294]
[1641059173373,12.15812698,175.3,175.22,18.26609294]
[1641059173573,12.15812698,175.3,175.22,21.26609294]
[1641059173774,12.15812698,175.3,175.22,18.26609294]
[1641059173975,76.00993823,175.34,175.22,18.26609294]
[1641059174175,2.73767375,175.31,175.23,12.159899]
[1641059174977,12.15344876,175.32,175.24,27.66479]
[1641059175176,12.15344876,175.32,175.24,39.824689]
[1641059176677,12.7386089,175.33,175.24,39.824689]
[1641059176878,12.7386089,175.33,175.25,1.31347583]
[1641059177479,12.15410662,175.3,175.25,1.31347583]
[1641059178379,12.15385199,175.31,175.24,27.66479]
[1641059179178,12.7386089,175.33,175.25,1.31346785]
[1641059179781,12.15369527,175.31,175.24,27.66479]
[1641059180481,12.7386089,175.33,175.25,1.31346646]
[1641059181284,2.73760481,175.33,175.24,27.66479]
[1641059182085,2.73760481,175.33,175.21,27.66479]
[1641059182286,3.0,175.3,175.19,5.70076675]
[1641059182486,2.73760481,175.33,175.19,5.70076675]
[1641059182487,14.81174266,175.33,175.19,5.70076675]
[1641059182887,27.66479,175.29,175.19,33.36555675]
[1641059183986,27.66479,175.29,175.19,5.70076675]
[1641059184788,2.7206377,175.28,175.19,5.70076675]
[1641059184986,27.66479,175.25,175.19,5.70076675]
[1641059185887,27.66479,175.25,175.18,41.6055]
[1641059186291,27.66479,175.25,175.15,5.70222957]
[1641059186492,27.66479,175.25,175.14,38.3302]
[1641059186890,27.66479,175.21,175.14,38.3302]
[1641059187190,27.66479,175.25,175.14,38.3302]
[1641059189293,27.66479,175.25,175.15,1.30469077]
[1641059190194,27.66479,175.25,175.15,19.62766172]
[1641059190794,27.66479,175.25,175.16,1.30469077]
[1641059191999,27.66479,175.25,175.19,12.159899]
[1641059193000,42.3578,175.27,175.19,12.159899]
[1641059193600,42.3578,175.27,175.2,12.159899]
[1641059194300,2.73874392,175.26,175.2,12.159899]
[1641059194904,27.66479,175.25,175.2,12.159899]
[1641059196204,12.07413785,175.28,175.2,12.159899]
[1641059196703,2.73872474,175.24,175.19,1.30469077]
[1641059197504,2.73872474,175.25,175.19,13.46458977]
[1641059200413,2.73872474,175.25,175.19,1.30469077]
[1641059200614,2.73872474,175.25,175.19,7.98969077]
[1641059201014,2.73872474,175.25,175.2,1.30469077]
[1641059202516,2.73872474,175.25,175.19,13.46458977]
[1641059203618,2.73872474,175.25,175.19,1.30469077]
[1641059204018,27.66479,175.26,175.19,1.30469077]
[1641059204219,27.66479,175.26,175.2,12.159899]
[1641059204821,27.66479,175.26,175.2,18.085899]
[1641059205421,27.66479,175.26,175.21,1.30469077]
[1641059206123,2.73549206,175.25,175.21,1.30469077]
[1641059206521,5.73549206,175.25,175.21,1.30469077]
[1641059206722,2.73549206,175.25,175.21,1.30469077]
[1641059207122,2.73549206,175.25,175.19,1.30469077]
[1641059208525,3.0,175.22,175.19,1.30469077]
[1641059208723,3.0,175.24,175.19,1.30469077]
[1641059208922,27.66479,175.21,175.19,1.30469077]
[1641059209326,30.40028206,175.21,175.15,1.30469077]
[1641059210326,27.66479,175.21,175.15,1.30469077]
[1641059211626,2.73957196,175.2,175.15,1.30469077]
[1641059212628,3.0,175.19,175.15,1.30469077]
[1641059212828,2.73957196,175.2,175.15,1.30469077]
[1641059213030,27.66479,175.18,175.14,12.159899]
[1641059213227,2.73957196,175.2,175.14,12.159899]
[1641059214031,2.73957196,175.2,175.13,12.159899]
[1641059215032,27.66479,175.16,175.13,12.159899]
[1641059215430,3.0,175.14,175.11,1.30469077]
[1641059215631,27.66479,175.16,175.09,6.19670677]
[1641059216434,27.66479,175.16,175.07,46.8540075]
[1641059217032,27.66479,175.16,175.08,3.0]
[1641059217232,27.66479,175.21,175.08,3.0]
[1641059217434,27.66479,175.21,175.11,5.70353049]
[1641059217632,27.66479,175.21,175.12,3.0]
[1641059218033,2.739955,175.2,175.11,8.70353049]
[1641059218234,2.739955,175.2,175.11,5.70353049]
[1641059218738,2.739955,175.2,175.1,6.19670677]
[1641059218935,27.66479,175.21,175.1,48.68515198]
[1641059219235,43.5235,175.23,175.15,27.66479]
[1641059219439,43.5235,175.23,175.12,27.66479]
[1641059219638,2.73954263,175.22,175.12,27.66479]
[1641059220638,2.73954263,175.22,175.13,6.2040505]
[1641059221038,2.73954263,175.22,175.16,27.66479]
[1641059221242,2.73954263,175.22,175.14,41.1572]
[1641059221937,2.73954263,175.23,175.15,6.2040505]
[1641059223138,2.73954263,175.23,175.16,27.66479]
[1641059224840,27.66479,175.24,175.16,27.66479]
[1641059226642,27.66479,175.24,175.14,41.1572]
[1641059226643,2.79853293,175.23,175.14,41.1572]
[1641059227142,27.66479,175.21,175.14,41.1572]
[1641059229245,27.66479,175.24,175.14,41.1572]
[1641059229947,5.79848995,175.23,175.12,27.66479]
[1641059230148,2.79848995,175.23,175.12,27.66479]
[1641059230750,2.79848995,175.22,175.12,27.66479]
[1641059231650,2.79848995,175.23,175.13,1.23698214]
[1641059232250,2.79848995,175.23,175.13,40.60878214]
[1641059232451,2.79848995,175.25,175.13,46.59783745]
[1641059233054,2.79848995,175.25,175.13,40.60878214]
[1641059233256,4.03540617,175.23,175.14,1.23698214]
[1641059233454,7.03540617,175.23,175.14,1.23698214]
[1641059233855,3.0,175.22,175.14,1.23698214]
[1641059234255,7.03540617,175.23,175.14,1.23698214]
[1641059234655,3.0,175.22,175.14,1.23698214]
[1641059234857,4.03540617,175.19,175.14,1.23698214]
[1641059235055,4.03540617,175.19,175.13,7.25132765]
[1641059235655,4.03540617,175.19,175.14,5.70255474]
[1641059236456,4.03540617,175.2,175.15,1.23698214]
[1641059237056,4.03540617,175.21,175.15,1.23698214]
[1641059237257,4.03540617,175.21,175.16,27.66479]
[1641059237859,4.03540617,175.21,175.17,7.25132765]
[1641059239262,31.70019617,175.21,175.17,7.25132765]
[1641059239660,4.03540617,175.21,175.17,7.25132765]
[1641059239860,4.03540617,175.19,175.13,7.25132765]
[1641059240261,4.03540617,175.19,175.13,12.95404499]
[1641059240661,4.03540617,175.19,175.16,5.70190444]
[1641059240862,6.17e-06,175.19,175.16,5.70190444]
[1641059241062,2.79848995,175.2,175.16,5.70190444]
[1641059241261,4.04548567,175.23,175.17,27.66479]
[1641059241863,4.04548567,175.23,175.18,1.23698214]
[1641059242761,3.0,175.25,175.14,1.23698214]
[1641059243464,2.80485284,175.24,175.16,27.66479]
[1641059243662,44.92585284,175.24,175.16,27.66479]
[1641059243861,2.80485284,175.24,175.16,27.66479]
[1641059244061,27.66479,175.25,175.16,27.66479]
[1641059244264,2.80538895,175.23,175.17,1.23698214]
[1641059244863,2.80538392,175.24,175.17,1.23698214]
[1641059245262,27.66479,175.25,175.17,1.23698214]
[1641059245966,2.80537281,175.24,175.17,1.23698214]
[1641059246366,5.80537281,175.24,175.17,1.23698214]
[1641059246568,2.80537281,175.24,175.17,1.23698214]
[1641059246770,12.13650429,175.23,175.13,19.37766687]
[1641059248673,17.94210015,175.24,175.13,19.37766687]
[1641059249273,27.66479,175.22,175.13,19.37766687]
[1641059249878,2.80568253,175.21,175.13,19.37766687]
[1641059250577,27.66479,175.22,175.13,19.37766687]
[1641059250779,39.80129429,175.25,175.14,12.13650429]
[1641059251380,2.80502794,175.24,175.16,12.13650429]
[1641059251980,27.66479,175.25,175.16,12.13650429]
[1641059252179,30.66479,175.25,175.16,12.13650429]
[1641059252581,2.80528767,175.24,175.15,12.13650429]
[1641059253281,3.0,175.26,175.16,12.13650429]
[1641059253579,3.0,175.24,175.16,12.13650429]
[1641059253780,109.73898429,175.27,175.16,12.13650429]
[1641059253980,109.73898429,175.27,175.14,1.23698214]
[1641059253981,12.13650429,175.24,175.14,1.23698214]
[1641059254782,14.9422537,175.25,175.16,12.13650429]
[1641059255383,14.9422537,175.25,175.16,39.80129429]
[1641059255583,12.13650429,175.25,175.17,12.13650429]
[1641059256484,14.9422537,175.25,175.16,12.13650429]
[1641059257186,12.13650429,175.24,175.16,12.13650429]
[1641059257388,12.13650429,175.24,175.16,39.80129429]
[1641059257888,12.98512964,175.26,175.16,39.80129429]
[1641059258087,12.98512964,175.26,175.17,19.37766687]
[1641059258088,12.15638609,175.25,175.17,19.37766687]
[1641059258587,12.98512964,175.26,175.17,19.37766687]
[1641059259587,12.15656308,175.25,175.17,19.37766687]
[1641059260789,12.98512964,175.26,175.17,19.37766687]
[1641059261391,12.15635366,175.25,175.17,19.37766687]
[1641059261991,15.98512964,175.26,175.17,19.37766687]
[1641059262588,5.80574941,175.26,175.17,13.37348643]
[1641059262789,2.80574941,175.25,175.17,1.23698214]
[1641059263394,3.0,175.26,175.17,1.23698214]
[1641059263792,109.71888986,175.27,175.17,1.23698214]
[1641059264192,2.80041073,175.25,175.17,1.23698214]
[1641059264993,5.8003209,175.26,175.17,1.23698214]
[1641059265593,2.8003209,175.25,175.16,1.23698214]
[1641059267397,2.8003209,175.26,175.16,28.90177214]
[1641059267999,2.8003209,175.26,175.17,1.23698214]
[1641059269802,66.93769,175.27,175.17,1.23698214]
[1641059270001,66.93769,175.27,175.17,6.93856148]
[1641059270401,39.2729,175.27,175.17,6.93856148]
[1641059271004,2.80933917,175.26,175.18,13.37348643]
[1641059271703,51.38930986,175.27,175.18,13.37348643]
[1641059272404,51.38930986,175.27,175.19,12.13650429]
[1641059272405,2.80939461,175.26,175.19,12.13650429]
[1641059273406,39.2729,175.27,175.2,12.13650429]
[1641059274010,2.80934375,175.26,175.19,12.13650429]
[1641059274811,39.2729,175.27,175.19,12.13650429]
[1641059275613,2.80947668,175.26,175.19,12.13650429]
[1641059276315,39.2729,175.27,175.19,12.13650429]
[1641059276914,2.80948076,175.26,175.19,12.13650429]
[1641059277516,3.0,175.26,175.2,12.13650429]
[1641059278521,2.80982699,175.25,175.17,19.38812173]
[1641059279219,12.1569162,175.26,175.18,12.13650429]
[1641059280023,2.8091846,175.26,175.19,12.13650429]
[1641059280822,39.2729,175.27,175.18,19.38812173]
[1641059281323,14.96568128,175.26,175.18,19.38812173]
[1641059281722,3.0,175.24,175.18,19.38812173]
[1641059281922,21.06168128,175.26,175.18,19.38812173]
[1641059282122,6.096,175.26,175.18,13.37348643]
[1641059282322,12.15818482,175.22,175.18,1.23698214]
[1641059282924,48.76126949,175.26,175.14,15.13650429]
[1641059283126,12.15800182,175.23,175.15,13.37894651]
[1641059283524,39.82279182,175.23,175.15,13.37894651]
[1641059283926,12.15800182,175.22,175.15,1.24244222]
[1641059285326,2.81022505,175.22,175.14,1.24244222]
[1641059287425,27.66479,175.23,175.14,1.24244222]
[1641059288028,3.0,175.19,175.14,1.24244222]
[1641059288426,3.0,175.21,175.14,1.24244222]
[1641059289230,5.80255642,175.2,175.12,1.24244222]
[1641059289427,27.66479,175.17,175.12,1.24244222]
[1641059290027,27.66479,175.17,175.09,19.37692097]
[1641059290228,21.41531097,175.17,175.09,19.37692097]
[1641059290828,21.41531097,175.17,175.1,12.13650429]
[1641059291629,21.41531097,175.17,175.09,19.37692097]
[1641059293131,2.81175576,175.16,175.11,12.13650429]
[1641059294434,14.93535731,175.21,175.12,12.13650429]
[1641059294933,3.0,175.2,175.12,12.13650429]
[1641059295134,17.93535731,175.21,175.12,12.13650429]
[1641059295333,12.12360155,175.2,175.12,12.13650429]
[1641059296436,14.93535731,175.2,175.11,12.13650429]
[1641059297040,12.12360155,175.19,175.11,12.13650429]
[1641059297537,27.66479,175.18,175.11,12.13650429]
[1641059297739,39.78839155,175.18,175.1,12.13650429]
[1641059298239,3.0,175.15,175.1,12.13650429]
[1641059298439,7.326,175.15,175.09,7.24041668]
[1641059298739,7.326,175.15,175.09,19.40216131]
[1641059298941,7.326,175.15,175.09,18.48216131]
[1641059299138,4.326,175.15,175.09,18.48216131]
[1641059299541,27.66479,175.12,175.09,5.99797446]
[1641059299740,27.66479,175.12,175.03,27.66479]
[1641059300140,27.66479,175.12,175.01,35.71274582]
[1641059300341,27.66479,175.12,175.01,32.46933823]
[1641059300743,27.66479,175.12,175.01,5.99797446]
[1641059301542,4.0554347,175.07,175.01,44.50127446]
[1641059301741,4.0554347,175.07,175.01,5.99797446]
[1641059302342,40.1198,175.11,175.0,27.66479]
[1641059303142,43.1198,175.11,175.0,27.66479]
[1641059303343,40.1198,175.11,175.0,30.66479]
[1641059303543,40.1198,175.11,175.0,27.66479]
[1641059304143,40.1198,175.11,175.01,3.0]
[1641059304344,40.1198,175.11,175.05,3.0]
[1641059304545,40.1108,175.14,175.05,3.0]
[1641059304746,4.0554347,175.15,175.05,3.0]
[1641059305144,4.0554347,175.19,175.06,3.0]
[1641059305748,4.0554347,175.19,175.11,27.66479]
[1641059305945,41.0996,175.21,175.11,27.66479]
[1641059306948,3.0,175.2,175.11,27.66479]
[1641059307149,41.0996,175.21,175.11,27.66479]
[1641059307649,27.66479,175.19,175.11,27.66479]
[1641059308048,27.66479,175.19,175.08,27.66479]
[1641059308249,30.66479,175.19,175.08,27.66479]
[1641059308651,27.66479,175.19,175.08,27.66479]
[1641059309451,30.66479,175.19,175.08,27.66479]
[1641059309652,27.66479,175.19,175.08,27.66479]
[1641059309854,30.66479,175.19,175.08,27.66479]
[1641059310156,34.7202247,175.19,175.08,27.66479]
[1641059310552,31.7202247,175.19,175.08,27.66479]
[1641059312355,34.7202247,175.19,175.08,27.66479]
[1641059312856,3.0,175.16,175.08,27.66479]
[1641059313054,4.0554347,175.18,175.08,27.66479]
[1641059313855,27.66479,175.19,175.08,27.66479]
[1641059314555,3.0,175.16,175.08,27.66479]
[1641059315157,4.0554347,175.11,175.08,27.66479]
[1641059315657,4.0554347,175.11,175.05,67.04709]
[1641059315858,27.66479,175.15,175.05,27.66479]
[1641059315859,4.0554347,175.09,175.05,27.66479]
[1641059316661,4.0554347,175.1,175.06,6.01247945]
[1641059317362,4.0554347,175.12,175.06,6.01247945]
[1641059318764,4.0554347,175.12,175.05,27.66479]
[1641059319165,4.0554347,175.1,175.05,27.66479]
[1641059319965,4.0554347,175.1,175.06,6.01264052]
[1641059321567,4.0554347,175.1,175.02,60.13412823]
[1641059321767,4.0554347,175.09,175.02,27.66479]
[1641059322368,4.0554347,175.08,175.03,6.01281647]
[1641059323168,4.0554347,175.09,175.03,6.01281647]
[1641059323768,4.0554347,175.08,175.03,6.01281647]
[1641059324467,4.0554347,175.07,175.02,6.01281647]
[1641059325768,4.0554347,175.06,175.02,6.01281647]
[1641059326367,4.0554347,175.06,175.02,11.71927618]
[1641059326567,4.0554347,175.08,175.02,6.01281647]
[1641059327168,4.0554347,175.1,175.02,6.01281647]
[1641059327767,4.0554347,175.1,175.06,27.66479]
[1641059327968,4.0554347,175.11,175.06,27.66479]
[1641059328669,4.0554347,175.1,175.06,27.66479]
[1641059329472,4.0554347,175.1,175.03,50.61639216]
[1641059329770,4.0554347,175.1,175.05,27.66479]
[1641059330573,4.0554347,175.11,175.05,27.66479]
[1641059331872,4.0554347,175.12,175.05,12.14149216]
[1641059332973,4.0554347,175.1,175.05,12.14149216]
[1641059333779,4.0554347,175.11,175.07,12.14149216]
[1641059335875,3.0,175.1,175.07,12.14149216]
[1641059336076,7.0554347,175.11,175.07,12.14149216]
[1641059336281,27.66479,175.14,175.01,27.66479]
[1641059336282,4.0554347,175.09,175.05,12.14149216]
[1641059336978,4.0554347,175.08,175.04,12.14149216]
[1641059339883,4.0554347,175.07,175.02,19.39516408]
[1641059340683,4.0554347,175.07,175.03,12.14149216]
[1641059341485,4.0554347,175.08,175.04,12.14149216]
[1641059343587,4.0554347,175.07,175.03,12.14149216]
[1641059344688,4.0554347,175.08,175.03,12.14149216]
[1641059345491,4.0554347,175.07,175.03,12.14149216]
[1641059346296,4.0554347,175.05,175.02,1.24096129]
[1641059346693,7.0554347,175.05,175.02,1.24096129]
[1641059347294,4.0554347,175.03,175.02,1.24096129]
[1641059348201,4.0554347,175.04,175.0,12.14149216]
[1641059348595,3.0,175.03,175.0,12.14149216]
[1641059348799,4.0554347,175.04,174.99,12.14149216]
[1641059349297,7.0554347,175.04,174.99,12.14149216]
[1641059349597,4.0554347,175.04,174.99,12.14149216]
[1641059350699,3.0,175.03,174.99,12.14149216]
[1641059350898,6.418,175.03,174.99,12.14149216]
[1641059351298,10.47453022,175.03,174.99,12.14149216]
[1641059351897,6.418,175.03,174.99,12.14149216]
[1641059352698,10.4746438,175.03,174.99,12.14149216]
[1641059353700,6.418,175.03,174.99,12.14149216]
[1641059354401,10.47462239,175.03,174.99,12.14149216]
[1641059354998,10.47462239,175.03,174.95,32.46933823]
[1641059355201,4.05657898,175.02,174.98,12.16973695]
[1641059355899,6.418,175.03,174.98,12.16973695]
[1641059356903,4.05657592,175.02,174.98,12.16973695]
[1641059357601,6.418,175.03,174.98,12.16973695]
[1641059358504,4.05668603,175.01,174.97,12.16973695]
[1641059359307,6.418,175.03,174.97,12.16973695]
[1641059359909,4.05666279,175.01,174.97,12.16973695]
[1641059360508,6.418,175.03,174.97,12.16973695]
[1641059361308,4.05677833,175.01,174.97,12.16973695]
[1641059362009,27.66479,175.01,174.96,12.16973695]
[1641059362210,3.0,175.02,174.96,12.16973695]
[1641059362609,7.05699889,175.01,174.97,12.16973695]
[1641059363010,4.05699889,175.01,174.97,12.16973695]
[1641059363409,3.0,175.02,174.97,12.16973695]
[1641059363610,3.0,175.02,174.94,7.25419339]
[1641059363611,4.05733043,175.0,174.95,12.16973695]
[1641059364016,27.66479,174.99,174.95,12.16973695]
[1641059364619,31.72220078,174.99,174.95,12.16973695]
[1641059365217,27.66479,174.99,174.95,12.16973695]
[1641059365418,8.7128167,175.02,174.95,12.16973695]
[1641059366019,27.66479,174.98,174.95,12.16973695]
[1641059366220,27.66479,174.98,174.94,12.16973695]
[1641059366221,31.72237113,174.98,174.94,12.16973695]
[1641059366419,3.0,174.96,174.94,12.16973695]
[1641059367020,3.0,174.96,174.93,12.16973695]
[1641059367221,4.05784052,174.97,174.93,12.16973695]
[1641059367418,3.0,174.96,174.93,12.16973695]
[1641059368020,4.05799282,174.96,174.92,12.16973695]
[1641059368220,27.66479,174.95,174.92,12.16973695]
[1641059368921,21.49835045,174.95,174.92,12.16973695]
[1641059369325,4.05819917,174.96,174.92,12.16973695]
[1641059370524,4.05819917,174.95,174.91,12.16973695]
[1641059371125,4.05819917,174.96,174.92,12.16973695]
[1641059373123,4.05819917,174.97,174.92,12.16973695]
[1641059373723,4.05819917,174.98,174.94,12.16973695]
[1641059375324,3.0,174.97,174.94,12.16973695]
[1641059375525,3.0,174.97,174.93,19.42393034]
[1641059375526,7.05819917,174.97,174.93,19.42393034]
[1641059376325,3.0,174.96,174.93,19.42393034]
[1641059376524,7.05819917,174.97,174.93,19.42393034]
[1641059376724,3.0,174.96,174.93,13.41069824]
[1641059377025,4.05819917,174.94,174.93,1.24096129]
[1641059377627,4.05819917,174.94,174.9,19.4236572]
[1641059378425,4.05819917,174.94,174.9,1.24096129]
[1641059379227,4.05819917,174.94,174.9,19.42366136]
[1641059379826,4.05819917,174.94,174.9,12.16973695]
[1641059380229,31.72298917,174.94,174.9,12.16973695]
[1641059380627,4.05819917,174.93,174.89,12.16973695]
[1641059383230,4.05819917,174.94,174.9,12.16973695]
[1641059384031,39.6892,175.0,174.88,7.25392441]
[1641059384032,4.05819917,174.96,174.91,12.16973695]
[1641059384231,27.66479,174.94,174.91,12.16973695]
[1641059384934,31.72298917,174.94,174.9,12.16973695]
[1641059386131,4.05819917,174.94,174.9,12.16973695]
[1641059386934,4.05819917,174.96,174.92,12.16973695]
[1641059388534,31.72298917,174.97,174.93,12.16973695]
[1641059390035,4.05819917,174.97,174.93,12.16973695]
[1641059390638,4.05819917,174.98,174.94,12.16973695]
[1641059391636,4.05819917,174.96,174.92,12.16973695]
[1641059392339,4.05819917,174.95,174.91,12.16973695]
[1641059394544,4.05819917,174.94,174.9,1.24096129]
[1641059395345,4.05819917,174.95,174.9,19.42036509]
[1641059395945,4.05819917,174.94,174.9,1.24096129]
[1641059396643,4.05819917,174.95,174.9,13.41069824]
[1641059396844,4.05819917,174.95,174.9,19.42040707]
[1641059397243,12.17459751,174.98,174.91,5.71004397]
[1641059397444,4.05566263,174.97,174.92,12.16973695]
[1641059397645,4.05566263,174.97,174.92,17.16073695]
[1641059398648,42.83938751,175.01,174.92,17.16073695]
[1641059398846,30.66479,175.01,174.93,12.16973695]
[1641059399346,3.0,174.97,174.93,12.16973695]
[1641059399545,30.66479,175.01,174.94,12.16973695]
[1641059400147,3.0,175.0,174.94,12.16973695]
[1641059400347,3.0,174.96,174.94,12.16973695]
[1641059400546,27.66479,174.98,174.92,12.16973695]
[1641059400749,41.806,174.97,174.92,12.16973695]
[1641059400948,27.66479,174.98,174.92,12.16973695]
[1641059402746,27.66479,174.98,174.94,12.16973695]
[1641059403648,27.66479,175.01,174.94,12.16973695]
[1641059403947,30.66479,175.01,174.94,12.16973695]
[1641059404648,42.83938751,175.01,174.93,12.16973695]
[1641059405351,39.83938751,175.01,174.93,12.16973695]
[1641059405549,12.17459751,175.01,174.93,12.16973695]
[1641059406252,27.66479,175.0,174.93,12.16973695]
[1641059406654,3.0,174.98,174.93,12.16973695]
[1641059406852,3.0,174.96,174.93,12.16973695]
[1641059407052,3.0,174.97,174.92,6.0140713]
[1641059407553,3.0,174.98,174.92,6.0140713]
[1641059407754,39.3445,174.99,174.92,6.0140713]
[1641059407956,12.17459751,174.98,174.89,39.83452695]
[1641059408758,50.87969751,174.99,174.91,12.16973695]
[1641059408954,50.87969751,174.99,174.91,53.13593695]
[1641059409356,12.17459751,174.99,174.91,53.13593695]
[1641059409557,52.00889751,174.99,174.91,53.13593695]
[1641059410264,12.17459751,174.99,174.93,27.66479]
[1641059410459,12.17459751,175.0,174.93,27.66479]
[1641059411161,12.17459751,175.01,174.93,27.66479]
[1641059411859,12.17459751,175.0,174.93,27.66479]
[1641059412461,12.17459751,175.01,174.93,39.83452695]
[1641059413665,3.0,174.99,174.93,39.83452695]
[1641059413866,3.0,174.99,174.93,12.16973695]
[1641059414067,15.17459751,175.01,174.93,12.16973695]
[1641059414466,12.17459751,175.01,174.93,12.16973695]
[1641059414666,12.17459751,175.02,174.94,12.16973695]
[1641059415267,41.4623,175.04,174.96,12.16973695]
[1641059416065,41.4623,175.04,174.93,37.34633823]
[1641059416066,41.4623,175.04,174.97,12.16973695]
[1641059416265,39.83938751,175.05,174.97,12.16973695]
[1641059416468,42.83938751,175.05,174.97,12.16973695]
[1641059417265,39.83938751,175.05,174.97,12.16973695]
[1641059417667,27.66479,175.05,174.95,66.18239]
[1641059419170,27.66479,175.05,174.95,78.35212695]
[1641059419769,27.66479,175.05,174.95,66.18239]
[1641059420472,3.0,175.04,174.95,66.18239]
[1641059420873,30.66479,175.05,174.95,66.18239]
[1641059421374,3.0,175.04,174.95,66.18239]
[1641059421573,27.66479,175.05,174.95,66.18239]
[1641059422575,12.17459751,175.04,174.95,66.18239]
[1641059423475,39.83938751,175.05,174.95,66.18239]
[1641059423677,42.83938751,175.05,174.95,66.18239]
[1641059423876,39.83938751,175.05,174.95,66.18239]
[1641059424075,12.17459751,175.02,174.95,66.18239]
[1641059426078,12.17459751,175.02,174.95,69.18239]
[1641059426780,12.17459751,175.04,174.96,18.18333301]
[1641059427482,39.83938751,175.05,174.97,12.16973695]
[1641059428184,12.17459751,175.05,174.97,12.16973695]
[1641059428983,12.17459751,175.04,174.96,18.18333301]
[1641059429583,100.51412823,175.08,174.96,18.18333301]
[1641059429883,80.21467893,175.08,174.99,12.16973695]
[1641059430082,83.21467893,175.08,174.99,12.16973695]
[1641059430583,12.16988893,175.07,174.99,12.16973695]
[1641059430783,27.66479,175.05,174.99,12.16973695]
[1641059431186,27.66479,175.05,174.97,12.16973695]
[1641059431784,39.83467893,175.05,174.97,12.16973695]
[1641059432585,27.66479,175.05,174.97,12.16973695]
[1641059432984,39.83617502,175.05,174.97,12.16973695]
[1641059433184,3.0,175.04,174.97,12.16973695]
[1641059433784,3.0,175.03,174.95,27.66479]
[1641059434184,57.59487531,175.04,174.95,27.66479]
[1641059434385,57.59487531,175.04,174.94,12.16973695]
[1641059434587,12.15927531,175.03,174.93,12.16973695]
[1641059434785,27.66479,175.02,174.93,39.83452695]
[1641059435484,27.66479,175.02,174.95,12.16973695]
[1641059436487,27.66479,175.02,174.94,6.0070235]
[1641059436488,21.48601804,175.02,174.96,12.16973695]
[1641059436888,27.66479,175.05,174.96,12.16973695]
[1641059437488,14.97256578,175.04,174.94,19.41619138]
[1641059438289,14.97256578,175.04,174.97,3.0]
[1641059438490,14.97256578,175.04,174.96,42.2844]
[1641059438690,14.97256578,175.04,174.98,27.66479]
[1641059439488,2.81329047,175.05,174.98,39.83452695]
[1641059439888,2.81329047,175.05,174.98,45.30052695]
[1641059440489,12.15927531,175.07,174.99,1.23943093]
[1641059440690,12.15927531,175.08,174.99,19.41619138]
[1641059440891,12.15927531,175.08,175.0,39.4684]
[1641059441491,52.46787531,175.08,175.0,39.4684]
[1641059441691,43.12189047,175.08,175.01,1.23943093]
[1641059442493,2.81329047,175.08,175.01,1.23943093]
[1641059443393,5.81329047,175.09,175.01,19.41459168]
[1641059443995,5.81329047,175.09,175.01,13.40916788]
[1641059444195,12.15927531,175.07,175.01,1.23943093]
[1641059444898,59.71906578,175.08,174.99,42.32893093]
[1641059445095,56.71906578,175.08,174.99,42.32893093]
[1641059445396,2.81329047,175.07,175.0,1.23943093]
[1641059446999,14.97256578,175.07,175.0,1.23943093]
[1641059447999,17.97256578,175.07,175.0,1.23943093]
[1641059448300,2.81329047,175.06,175.0,1.23943093]
[1641059448704,30.47808047,175.06,175.0,1.23943093]
[1641059449503,2.81329047,175.06,175.0,1.23943093]
[1641059449903,2.81329047,175.07,175.0,19.42155355]
[1641059450506,5.81329047,175.07,175.0,19.42155355]
[1641059450706,27.66479,175.06,175.0,19.42155355]
[1641059451307,2.81329047,175.05,175.0,1.23943093]
[1641059453009,14.97256578,175.05,175.0,1.23943093]
[1641059453509,12.15927531,175.04,175.0,1.23943093]
[1641059454410,12.15927531,175.06,175.0,1.23943093]
[1641059455011,12.15927531,175.05,175.0,1.23943093]
[1641059457713,4.04369664,175.03,174.99,41.0895]
[1641059458014,4.04369664,175.03,174.98,27.66479]
[1641059459915,4.04369664,175.04,174.99,1.23643206]
[1641059460716,4.04369664,175.05,174.99,1.23643206]
[1641059460917,4.04369664,175.05,175.01,27.66479]
[1641059461619,4.04369664,175.07,175.02,1.23643206]
[1641059462320,4.04369664,175.06,175.01,27.66479]
[1641059462819,4.04369664,175.06,174.98,39.83452695]